Workbook

Sheet Sheet1
A1: 2017年达州市通川区社会保险基金支出决算表
D2: 单位：万元
A3: 预 算 科 目 | B3: 年初 预算数 | C3: 变动 预算数 | D3: 决算数 | E3: 为预算 （%）
A4: 一、城乡居民保险基金支出 | B4: =SUM(B5:B8) -> 4,543 | C4: =SUM(C5:C8) -> 501 | D4: 5,044 | E4: =D4/B4*100 -> 111.03
A5: 其中：基础养老金支出 | B5: 4,000 | C5: =D5-B5 -> 453 | D5: 4,453 | E5: =D5/B5*100 -> 111.33
A6: 个人账户养老金支出 | B6: 500 | C6: =D6-B6 -> -10 | D6: 490 | E6: 98.00
A7: 丧葬抚恤补助支出 | B7: 43 | C7: 45 | D7: 88 | E7: 204.65
A8: 转移支出 | C8: 13 | D8: 13
A9: 二、新型农村合作医疗保险基金支出 | B9: =SUM(B10:B11) -> 16,600 | C9: =SUM(C10:C11) -> 4,377 | D9: 20,977 | E9: 126.37
A10: 其中：基本医疗保险待遇支出 | B10: 16,000 | C10: =D10-B10 -> 4,217 | D10: 20,217 | E10: 126.36
A11: 大病保险支出 | B11: 600 | C11: =D11-B11 -> 160 | D11: 760 | E11: 126.67
A12: 社会保险基金支出合计 | B12: =B4+B9 -> 21,143 | C12: =C4+C9 -> 4,878 | D12: =D4+D9 -> 26,021 | E12: 123.07

Sheet Sheet2

Sheet Sheet3
